lending/lending_fUSD_20251018
["ID","MTS","AMOUNT","RATE_DAILY","PERIOD"]
[391736990,1760763044330,-695.39,0.00036384,2]
[391736992,1760763044340,-695.39,0.00036384,2]
[391736994,1760763044350,-695.39,0.00036384,2]
[391736995,1760763044359,-695.39,0.00036384,2]
[391736997,1760763044368,-695.39,0.00036384,2]
[391737000,1760763044378,-151.0,0.00036384,60]
[391737002,1760763044388,-151.0,0.00036384,15]
[391737004,1760763044397,-151.0,0.00036384,120]
[391737005,1760763044406,-227.235336,0.00036384,120]
[391737008,1760763044416,-151.0,0.00036384,120]
[391737010,1760763044425,-150.0,0.00036393,7]
[391737012,1760763044435,-5731.5204978,0.00036469,2]
[391737014,1760763044443,-151.0,0.00036475,120]
[391737016,1760763044453,-247.551598,0.00036475,120]
[391737018,1760763044462,-151.0,0.00036475,120]
[391737020,1760763044472,-7623.46254048,0.00036499,3]
[391737022,1760763044481,-1095.72,0.00036509,120]
[391737024,1760763044490,-11719.4781964,0.0003651,3]
[391737026,1760763044499,-150.0,0.00036512,7]
[391737028,1760763044509,-12233.52009595,0.0003652,2]
[391737030,1760763044519,-150.0,0.00036578,7]
[391737032,1760763044528,-7623.46254048,0.00036615,3]
[391737034,1760763044537,-200.654269,0.00036616,2]
[391737036,1760763044546,-600.0,0.00036625,7]
[391737038,1760763044555,-2100.0,0.00036625,7]
[391737040,1760763044564,-900.0,0.00036625,7]
[391737042,1760763044573,-150.0,0.00036639,7]
[391737044,1760763044581,-150.0,0.00036678,7]
[391737046,1760763044590,-1613.03692224,0.000367,120]
[391737048,1760763044600,-151.0,0.000367,120]
[391737050,1760763044609,-151.0,0.000367,120]
[391737052,1760763044618,-151.0,0.000367,120]
[391737054,1760763044627,-156.669104,0.000367,120]
[391737056,1760763044636,-151.0,0.000367,120]
[391737058,1760763044645,-151.0,0.000367,120]
[391737060,1760763044654,-151.0,0.000367,120]
[391737062,1760763044663,-151.0,0.000367,120]
[391737063,1760763044672,-151.0,0.000367,120]
[391737065,1760763044682,-357.293366,0.000367,120]
[391737066,1760763044691,-357.293366,0.000367,120]
[391737067,1760763044699,-151.0,0.000367,120]
[391737068,1760763044708,-151.0,0.000367,120]
[391737069,1760763044717,-357.293366,0.000367,120]
[391737070,1760763044727,-151.0,0.000367,120]
[391737071,1760763044736,-151.0,0.000367,120]
[391737072,1760763044745,-357.293366,0.000367,120]
[391737073,1760763044754,-151.0,0.000367,120]
[391737074,1760763044763,-151.0,0.000367,120]
[391737075,1760763044773,-151.0,0.000367,120]
[391737076,1760763044782,-197.909159,0.000367,120]
[391737077,1760763044792,-151.0,0.000367,120]
[391737079,1760763044808,-151.0,0.000367,120]
[391737080,1760763044827,-151.0,0.000367,120]
[391737082,1760763044837,-150.0,0.00036741,7]
[391737084,1760763044846,-166.66,0.00036755,2]
[391737086,1760763044856,-150.0,0.00036762,7]
[391737088,1760763044865,-170.77,0.00036795,2]
[391737090,1760763044874,-168.27,0.00036795,2]
[391737092,1760763044883,-168.27,0.00036795,2]
[391737094,1760763044894,-150.0,0.00036795,2]
[391737096,1760763044904,-150.0,0.00036795,2]
[391737098,1760763044915,-168.27,0.00036795,2]
[391737100,1760763044926,-419.96,0.00036795,2]
[391737102,1760763044936,-150.0,0.00036795,2]
[391737104,1760763044952,-176.09,0.00036795,2]
[391737106,1760763044971,-1093.6,0.00036795,2]
[391737108,1760763044980,-413.73,0.00036795,2]
[391737110,1760763044990,-150.0,0.00036795,2]
[391737112,1760763045000,-325.65,0.00036803,2]
[391737114,1760763045009,-150.0,0.00036855,7]
[391737116,1760763045019,-150.0,0.00036855,7]
[391737118,1760763045028,-150.0,0.00036855,7]
[391737120,1760763045038,-150.0,0.00036855,7]
[391737122,1760763045047,-150.0,0.00036855,7]
[391737124,1760763045057,-150.0,0.00036855,7]
[391737126,1760763045066,-532.52917006,0.00036897,5]
[391737128,1760763045076,-11719.4781964,0.00036898,3]
[391737130,1760763045086,-7623.46254048,0.00036898,3]
[391737132,1760763045095,-1000.0,0.00036908,5]
[391737134,1760763045106,-151.0,0.00036908,120]
[391737136,1760763045116,-151.0,0.00036908,120]
[391737138,1760763045125,-151.0,0.00036908,120]
[391737140,1760763045135,-151.0,0.00036908,120]
[391737142,1760763045144,-151.0,0.00036908,120]
[391737144,1760763045153,-185.297903,0.00036908,120]
[391737146,1760763045163,-185.297903,0.00036908,120]
[391737148,1760763045173,-185.297903,0.00036908,120]
[391737150,1760763045182,-152.615496,0.00036908,120]
[391737152,1760763045191,-185.297903,0.00036908,120]
[391737154,1760763045201,-152.615496,0.00036908,120]
[391737156,1760763045211,-152.615496,0.00036908,120]
[391737158,1760763045221,-152.615496,0.00036908,120]
[391737160,1760763045231,-151.0,0.00036908,120]
[391737162,1760763045240,-151.0,0.00036908,120]
[391737164,1760763045249,-151.0,0.00036908,120]
[391737166,1760763045258,-151.0,0.00036908,120]
[391737168,1760763045268,-151.0,0.00036908,120]
[391737170,1760763045277,-223.733948,0.00036908,120]
[391737172,1760763045286,-13886.08893262,0.0003691,2]
[391737174,1760763045295,-150.0,0.00036947,7]
[391737176,1760763045303,-150.0,0.00036969,7]
[391737179,1760763045313,-11719.4781964,0.0003699,3]
[391737182,1760763045323,-7623.46254048,0.0003699,3]
[391737184,1760763045332,-1242.29765712,0.00037,30]
[391737186,1760763045342,-1000.0,0.00037,2]
[391737188,1760763045351,-1000.0,0.00037,2]
[391737190,1760763045361,-1000.0,0.00037,2]
[391737192,1760763045370,-1000.0,0.00037,2]
[391737194,1760763045379,-1000.0,0.00037,2]
[391737196,1760763045389,-1000.0,0.00037,2]
[391737198,1760763045399,-1000.0,0.00037,2]
[391737200,1760763045408,-1000.0,0.00037,2]
[391737202,1760763045417,-1000.0,0.00037,2]
[391737204,1760763045428,-1000.0,0.00037,2]
[391737206,1760763045440,-5661.0,0.00037,117]
[391737208,1760763045449,-150.0,0.00037031,7]
[391737210,1760763045459,-160.77807033,0.00037049,10]
[391737212,1760763045468,-150.0,0.0003707,7]
[391737214,1760763045477,-2589.0,0.00037108,5]
[391737216,1760763045486,-150.0,0.00037132,7]
[391737218,1760763045496,-150.0,0.00037197,7]
[391737220,1760763045505,-386.71,0.000372,30]
[391737222,1760763045514,-191.13416905,0.000372,120]
[391737224,1760763045523,-191.13416905,0.000372,120]
[391737226,1760763045535,-191.13416905,0.000372,120]
[391737228,1760763045546,-191.13416905,0.000372,120]
[391737229,1760763045555,-5731.5204978,0.00037212,2]
[391737231,1760763045565,-11719.4781964,0.00037262,3]
[391737233,1760763045574,-151.0,0.00037272,14]
[391737235,1760763045583,-151.0,0.00037272,120]
[391737237,1760763045592,-151.0,0.00037272,120]
[391737239,1760763045601,-151.0,0.00037272,120]
[391737241,1760763045611,-193.17406,0.00037272,120]
[391737243,1760763045619,-193.17406,0.00037272,120]
[391737245,1760763045628,-193.17406,0.00037272,120]
[391737247,1760763045637,-193.17406,0.00037272,120]
[391737249,1760763045646,-151.0,0.00037272,120]
[391737251,1760763045655,-151.0,0.00037272,120]
[391737253,1760763045665,-168.842052,0.00037272,120]
[391737255,1760763045674,-168.842052,0.00037272,120]
[391737257,1760763045683,-168.842052,0.00037272,120]
[391737259,1760763045692,-168.842052,0.00037272,120]
[391737261,1760763045703,-12233.52009595,0.00037272,2]
[391737263,1760763045712,-300.0,0.00037289,10]
[391737265,1760763045722,-300.0,0.00037289,10]
[391737267,1760763045731,-300.0,0.00037289,10]
[391737269,1760763045740,-196.66983584,0.0003729,120]
[391737271,1760763045749,-151.0,0.0003729,120]
[391737273,1760763045757,-151.0,0.0003729,120]
[391737275,1760763045767,-166.57905,0.0003729,120]
[391737277,1760763045776,-151.0,0.0003729,120]
[391737279,1760763045785,-151.0,0.0003729,120]
[391737281,1760763045795,-151.0,0.0003729,120]
[391737283,1760763045804,-151.0,0.0003729,120]
[391737285,1760763045813,-151.0,0.0003729,120]
[391737287,1760763045822,-151.0,0.0003729,120]
[391737289,1760763045836,-172.195982,0.0003729,120]
[391737291,1760763045845,-151.0,0.0003729,120]
[391737293,1760763045854,-164.218119,0.0003729,120]
[391737295,1760763045863,-164.218119,0.0003729,120]
[391737297,1760763045872,-164.218119,0.0003729,120]
[391737299,1760763045882,-164.218119,0.0003729,120]
[391737301,1760763045894,-151.0,0.0003729,120]
[391737303,1760763045903,-151.0,0.0003729,120]
[391737305,1760763045912,-151.0,0.0003729,120]
[391737307,1760763045922,-151.0,0.0003729,120]
[391737309,1760763045932,-177.078586,0.0003729,120]
[391737311,1760763045941,-185.297903,0.0003729,120]
[391737313,1760763045951,-185.297903,0.0003729,120]
[391737315,1760763045961,-185.297903,0.0003729,120]
[391737317,1760763045970,-152.615496,0.0003729,120]
[391737319,1760763045980,-185.29791259,0.0003729,120]
[391737321,1760763045990,-152.615496,0.0003729,120]
[391737323,1760763045999,-152.615496,0.0003729,120]
[391737325,1760763046008,-152.615486,0.0003729,120]
[391737327,1760763046017,-151.0,0.0003729,120]
[391737329,1760763046026,-151.0,0.0003729,120]
[391737331,1760763046035,-151.0,0.0003729,120]
[391737333,1760763046045,-151.0,0.0003729,120]
[391737335,1760763046055,-226.831342,0.0003729,120]
[391737337,1760763046063,-151.0,0.0003729,120]
[391737339,1760763046072,-151.0,0.0003729,15]
[391737341,1760763046082,-151.0,0.0003729,120]
[391737343,1760763046091,-151.0,0.0003729,120]
[391737345,1760763046100,-151.0,0.0003729,120]
[391737347,1760763046110,-151.0,0.0003729,120]
[391737349,1760763046119,-151.0,0.0003729,120]
[391737351,1760763046129,-151.0,0.0003729,120]
[391737353,1760763046138,-151.0,0.0003729,120]
[391737355,1760763046147,-151.0,0.0003729,120]
[391737357,1760763046156,-357.293366,0.0003729,120]
[391737359,1760763046165,-357.293366,0.0003729,120]
[391737361,1760763046175,-151.0,0.0003729,120]
[391737363,1760763046184,-151.0,0.0003729,120]
[391737365,1760763046193,-357.293366,0.0003729,120]
[391737367,1760763046203,-151.0,0.0003729,120]
[391737369,1760763046212,-151.0,0.0003729,120]
[391737371,1760763046221,-357.293366,0.0003729,120]
[391737373,1760763046231,-151.0,0.0003729,120]
[391737375,1760763046240,-151.0,0.0003729,120]
[391737377,1760763046249,-221.327233,0.0003729,120]
[391737379,1760763046258,-151.0,0.0003729,120]
[391737381,1760763046270,-257.622196,0.0003729,120]
[391737383,1760763046278,-213.105491,0.0003729,14]
[391737385,1760763046288,-151.0,0.0003729,120]
[391737387,1760763046297,-151.0,0.0003729,120]
[391737390,1760763046306,-151.0,0.0003729,120]
[391737392,1760763046315,-193.17406,0.0003729,120]
[391737394,1760763046325,-193.17406,0.0003729,120]
[391737396,1760763046334,-193.17406,0.0003729,120]
[391737398,1760763046343,-193.174052,0.0003729,120]
[391737400,1760763046353,-151.0,0.0003729,120]
[391737402,1760763046362,-151.0,0.0003729,120]
[391737404,1760763046373,-168.842052,0.0003729,120]
[391737406,1760763046382,-168.842052,0.0003729,120]
[391737408,1760763046391,-168.842052,0.0003729,120]
[391737410,1760763046400,-168.842061,0.0003729,120]
[391737412,1760763046409,-1000.0,0.0003729,2]
[391737414,1760763046419,-192626.3613,0.0003729,2]
[391737416,1760763046428,-342.34,0.000373,2]
[391737418,1760763046437,-150.0,0.00037317,7]
[391737420,1760763046447,-150.0,0.0003734,7]
[391737422,1760763046456,-213.48184342,0.00037342,2]
[391737424,1760763046464,-150.0,0.00037384,7]
[391737426,1760763046473,-300.0,0.00037389,10]
[391737428,1760763046482,-300.0,0.00037389,10]
[391737430,1760763046491,-300.0,0.00037389,10]
[391737432,1760763046500,-194806.24762962,0.0003739,14]
[391737434,1760763046508,-209.686508,0.0003739,60]
[391737436,1760763046517,-151.0,0.0003739,120]
[391737438,1760763046526,-151.0,0.0003739,120]
[391737440,1760763046535,-151.0,0.0003739,120]
[391737442,1760763046544,-151.0,0.0003739,120]
[391737444,1760763046553,-151.0,0.0003739,120]
[391737446,1760763046563,-151.0,0.0003739,120]
[391737448,1760763046572,-151.0,0.0003739,120]
[391737450,1760763046581,-151.0,0.0003739,120]
[391737452,1760763046590,-151.592104,0.0003739,120]
[391737454,1760763046599,-164.218119,0.0003739,120]
[391737456,1760763046608,-164.218119,0.0003739,120]
[391737458,1760763046617,-164.218119,0.0003739,120]
[391737460,1760763046626,-164.218116,0.0003739,120]
[391737462,1760763046635,-218.28328,0.0003739,120]
[391737464,1760763046644,-151.0,0.0003739,15]
[391737466,1760763046653,-151.0,0.0003739,120]
[391737468,1760763046662,-151.0,0.0003739,120]
[391737470,1760763046671,-151.0,0.0003739,120]
[391737472,1760763046680,-151.0,0.0003739,120]
[391737474,1760763046689,-151.0,0.0003739,120]
[391737476,1760763046698,-151.0,0.0003739,120]
[391737478,1760763046708,-357.293366,0.0003739,120]
[391737480,1760763046717,-151.0,0.0003739,120]
[391737482,1760763046726,-357.293366,0.0003739,120]
[391737484,1760763046735,-151.0,0.0003739,120]
[391737486,1760763046743,-357.293366,0.0003739,120]
[391737488,1760763046753,-151.0,0.0003739,120]
[391737490,1760763046762,-151.0,0.0003739,120]
[391737491,1760763046771,-357.29337,0.0003739,120]
[391737493,1760763046780,-151.0,0.0003739,120]
[391737495,1760763046789,-151.0,0.0003739,120]
[391737497,1760763046799,-151.0,0.0003739,120]
[391737500,1760763046808,-158.0,0.00037397,30]
[391737501,1760763046817,-152.0,0.000374,120]
[391737503,1760763046826,-150.0,0.00037425,7]
[391737506,1760763046835,-600.0,0.00037447,7]
[391737507,1760763046844,-2100.0,0.00037447,7]
[391737509,1760763046854,-900.0,0.00037447,7]
[391737512,1760763046863,-274.60564354,0.00037456,5]
[391737513,1760763046872,-2000.0,0.00037481,120]
[391737515,1760763046882,-500.0,0.00037481,120]
[391737518,1760763046891,-150.0,0.00037501,7]
[391737519,1760763046900,-150.0,0.00037501,7]
[391737521,1760763046913,-150.0,0.00037501,7]
[391737523,1760763046922,-150.0,0.00037501,7]
[391737526,1760763046932,-150.0,0.00037501,7]
[391737528,1760763046941,-150.0,0.00037501,7]
[391737530,1760763046950,-2000.0,0.00037534,120]
[391737531,1760763046959,-2000.0,0.00037534,120]
[391737533,1760763046969,-1037.89104282,0.00037534,120]
[391737536,1760763046978,-500.0,0.00037543,7]
[391737537,1760763046986,-500.0,0.00037543,7]
[391737539,1760763046996,-500.0,0.00037543,7]
[391737541,1760763047005,-264.7,0.00037543,7]
[391737543,1760763047014,-500.0,0.00037543,7]
[391737546,1760763047024,-500.0,0.00037543,7]
[391737547,1760763047032,-500.0,0.00037543,7]
[391737548,1760763047042,-500.0,0.00037543,7]
[391737549,1760763047050,-500.0,0.00037543,7]
[391737550,1760763047060,-500.0,0.00037543,7]
[391737551,1760763047069,-500.0,0.00037543,7]
[391737552,1760763047078,-500.0,0.00037543,7]
[391737553,1760763047087,-500.0,0.00037543,7]
[391737554,1760763047096,-500.0,0.00037543,7]
[391737555,1760763047106,-500.0,0.00037543,7]
[391737556,1760763047115,-500.0,0.00037543,7]
[391737557,1760763047124,-500.0,0.00037543,7]
[391737558,1760763047133,-500.0,0.00037543,7]
[391737559,1760763047142,-500.0,0.00037543,7]
[391737560,1760763047151,-500.0,0.00037543,7]
[391737561,1760763047160,-500.0,0.00037543,7]
[391737562,1760763047170,-500.0,0.00037543,7]
[391737563,1760763047180,-500.0,0.00037543,7]
[391737564,1760763047190,-500.0,0.00037543,7]
[391737565,1760763047199,-500.0,0.00037543,7]
[391737566,1760763047208,-500.0,0.00037543,7]
[391737567,1760763047218,-500.0,0.00037543,7]
[391737568,1760763047227,-500.0,0.00037543,7]
[391737569,1760763047353,-500.0,0.00037543,7]
[391737570,1760763047379,-500.0,0.00037543,7]
[391737572,1760763047389,-500.0,0.00037543,7]
[391737573,1760763047399,-500.0,0.00037543,7]
[391737574,1760763047408,-500.0,0.00037543,7]
[391737575,1760763047417,-500.0,0.00037543,7]
[391737576,1760763047427,-537.8,0.00037543,7]
[391737577,1760763047436,-500.0,0.00037543,7]
[391737578,1760763047445,-2050.0,0.00037544,2]
[391737579,1760763047455,-3408.0,0.00037544,2]
[391737580,1760763047465,-750.0,0.00037544,2]
[391737581,1760763047474,-1267.0,0.00037544,2]
[391737582,1760763047483,-1310.0,0.00037544,2]
[391737583,1760763047492,-605.0,0.00037544,2]
[391737584,1760763047502,-571.0,0.00037544,2]
[391737585,1760763047511,-1589.0,0.00037544,2]
[391737586,1760763047521,-817.0,0.00037544,2]
[391737587,1760763047530,-2590.0,0.00037544,2]
[391737588,1760763047539,-557.0,0.00037544,2]
[391737589,1760763047549,-998.9822381,0.0003755,2]
[391737590,1760763047558,-8789.0621692,0.0003755,2]
[391737591,1760763047568,-4259.04155643,0.0003759,2]
[391737592,1760763047577,-154.0,0.000376,120]
[391737593,1760763047587,-1095.72,0.00037605,120]
[391737594,1760763047600,-1978.74056,0.00037606,2]
[391737595,1760763047612,-1093.6,0.00037616,2]
[391737596,1760763047621,-352.18,0.00037616,2]
[391737597,1760763047631,-413.73,0.00037616,2]
[391737598,1760763047641,-546.7,0.00037616,2]
[391737599,1760763047651,-176.09,0.00037616,2]
[391737600,1760763047660,-413.73,0.00037616,2]
[391737601,1760763047669,-546.8,0.00037616,2]
[391737602,1760763047678,-413.73,0.00037616,2]
[391737603,1760763047688,-546.8,0.00037616,2]
[391737604,1760763047697,-413.73,0.00037616,2]
[391737605,1760763047707,-412.33,0.00037616,2]
[391737606,1760763047716,-546.8,0.00037616,2]
[391737607,1760763047725,-176.09,0.00037616,2]
[391737609,1760763047735,-413.65,0.00037616,2]
[391737610,1760763047744,-528.98,0.00037616,2]
[391737611,1760763047754,-413.73,0.00037616,2]
[391737612,1760763047763,-413.73,0.00037616,2]
[391737613,1760763047773,-413.73,0.00037616,2]
[391737614,1760763047782,-413.73,0.00037616,2]
[391737615,1760763047791,-301.24,0.00037616,2]
[391737616,1760763047800,-2500.0,0.00037651,7]
[391737617,1760763047810,-150.0,0.00037654,7]
[391737618,1760763047819,-2500.0,0.0003766,7]
[391737619,1760763047830,-307.7076,0.0003766,10]
[391737620,1760763047839,-150.0,0.00037686,7]
[391737621,1760763047848,-300.0,0.00037699,10]
[391737622,1760763047858,-500.0,0.00037699,120]
[391737623,1760763047868,-263960.48910623,0.000377,30]
[391737624,1760763047877,-152.234337,0.000377,120]
[391737625,1760763047888,-151.0,0.000377,120]
[391737626,1760763047899,-151.0,0.000377,120]
[391737627,1760763047908,-150.0,0.00037736,7]
[391737628,1760763047917,-280.491918,0.0003776,120]
[391737629,1760763047926,-151.0,0.0003776,3]
[391737630,1760763047937,-203.53097494,0.0003776,3]
[391737631,1760763047946,-1000.0,0.0003776,3]
[391737632,1760763047955,-1000.0,0.0003776,3]
[391737633,1760763047966,-1000.0,0.0003776,3]
[391737634,1760763047975,-1000.0,0.0003776,3]
[391737635,1760763047984,-1000.0,0.0003776,3]
[391737636,1760763047994,-1000.0,0.0003776,3]
[391737637,1760763048003,-9552.16786547,0.0003776,3]
[391737638,1760763048012,-1000.0,0.0003776,3]
[391737639,1760763048022,-1000.0,0.0003776,3]
[391737640,1760763048032,-9905.5980765,0.0003776,3]
[391737641,1760763048040,-1000.0,0.0003776,3]
[391737642,1760763048050,-1000.0,0.0003776,3]
[391737643,1760763048060,-10272.10520533,0.0003776,3]
[391737644,1760763048069,-1000.0,0.0003776,3]
[391737645,1760763048078,-202.4534547,0.0003776,3]
[391737646,1760763048088,-1000.0,0.0003776,3]
[391737647,1760763048097,-10652.17309792,0.0003776,3]
[391737648,1760763048107,-600.0,0.0003776,3]
[391737649,1760763048116,-125.65291926,0.0003776,3]
[391737651,1760763048347,-152.58663,0.00033453,30]
[391737652,1760763048357,-277.92949405,0.0003776,3]
[391737653,1760763048467,-596.41758669,0.0003776,3]
[391737654,1760763048476,-1000.0,0.0003776,3]
[391737655,1760763048486,-600.0,0.0003776,3]
[391737656,1760763048495,-8653.58241331,0.0003776,3]
[391737657,1760763048506,-2392.72108924,0.0003776,3]
[391737658,1760763048515,-1000.0,0.0003776,3]
[391737659,1760763048524,-1000.0,0.0003776,3]
[391737660,1760763048534,-11455.01673214,0.0003776,3]
[391737661,1760763048543,-600.0,0.0003776,3]
[391737662,1760763048552,-1000.0,0.0003776,3]
[391737663,1760763048560,-3920.58127602,0.0003776,3]
[391738138,1760763196885,176.01,0.0001817,2]
[391738158,1760763257792,260.9,0.00013699,2]
[391738540,1760764210679,150.0,0.0002,2]
[391738598,1760764231682,-150.0,0.00020187,2]
[391738599,1760764231693,-300.0,0.00020187,2]
[391738601,1760764231702,-195.0,0.00020187,2]
[391738602,1760764231712,-195.0,0.00020187,2]
[391738603,1760764231721,-260.9,0.00020187,2]
[391738604,1760764231731,-851.49632374,0.000206,2]
[391738605,1760764231740,-851.49632374,0.000208,2]
[391738606,1760764231750,-1200.0,0.00020996,2]
[391738607,1760764231759,-300.0,0.00020998,2]
[391738608,1760764231769,-156.10735251,0.00020999,2]
[391738609,1760764231782,-326.01470679,0.00020999,2]
[391738611,1760764231796,-82.8779407,0.00020999,2]
[391738612,1760764231806,-300.0,0.00020999,2]
[391738613,1760764231815,-728.50815551,0.00021,2]
[391738641,1760764237692,-122.98816823,0.00021,2]
[391738642,1760764237702,-302.8662902,0.000212,2]
[391738692,1760764239634,-548.63003354,0.000212,2]
[391738694,1760764239644,-500.0,0.0002125,2]
[391738696,1760764239654,-851.49632374,0.000214,2]
[391738698,1760764239663,-195.0,0.00022206,2]
[391738701,1760764239673,-300.0,0.00022206,2]
[391738703,1760764239683,-250.0,0.00022206,2]
[391738704,1760764239691,-302.01604337,0.00022206,30]
[391738707,1760764239701,-500.0,0.00022206,3]
[391738708,1760764239710,-300.0,0.00022206,2]
[391738711,1760764239719,-591.65103447,0.00023256,7]
[391738713,1760764239730,-176.01,0.00024226,2]
[391738715,1760764239740,-295.82551724,0.00025656,2]
[391738717,1760764239753,-181.614,0.00026368,13]
[391738719,1760764239763,-353.40569202,0.00026368,13]
[391738721,1760764239774,-750.85930798,0.00026368,13]
[391738723,1760764239784,-260.9,0.00026676,2]
[391738725,1760764239793,-16.18062615,0.00027778,2]
[391738727,1760764239804,-150.17937385,0.00027778,2]
[391738729,1760764239813,-119.02571568,0.0002868,5]
[391738732,1760764239825,-389.29957647,0.0002868,5]
[391738734,1760764239834,-52.50493753,0.00030057,2]
[391738744,1760764239922,-97.49506247,0.00030057,2]
[391738746,1760764239931,-150.0,0.00030212,2]
[391738748,1760764239940,-176.01,0.00030283,2]
[391738750,1760764239949,-153.0,0.00030728,2]
[391738752,1760764239959,-153.0,0.00030728,2]
[391738754,1760764239968,-40.81408739,0.00030728,2]
[391738982,1760764242683,-112.18591261,0.00030728,2]
[391738983,1760764242692,-153.0,0.00030728,2]
[391738984,1760764242702,-153.0,0.00030728,2]
[391738985,1760764242711,-32.01408743,0.00030728,2]
[391738988,1760764242794,-120.98591257,0.00030728,2]
[391738989,1760764242804,-153.0,0.00030728,2]
[391738990,1760764242813,-153.0,0.00030728,2]
[391738991,1760764242822,-153.0,0.00030728,2]
[391738992,1760764242831,-153.0,0.00030728,2]
[391738993,1760764242840,-153.0,0.00030728,2]
[391738994,1760764242849,-153.0,0.00030728,2]
[391738995,1760764242859,-153.0,0.00030728,2]
[391738996,1760764242868,-52.7321154,0.00030728,2]
[391738997,1760764242882,-100.2678846,0.00030728,2]
[391738998,1760764242891,-153.0,0.00030728,2]
[391738999,1760764242900,-153.0,0.00030728,2]
[391739000,1760764242909,-42.92192118,0.00030728,2]
[391739014,1760764245665,-110.07807882,0.00030728,2]
[391739015,1760764245674,-153.0,0.00030728,2]
[391739016,1760764245683,-153.0,0.00030728,2]
[391739017,1760764245692,-153.0,0.00030728,2]
[391739018,1760764245701,-153.0,0.00030728,2]
[391739019,1760764245710,-153.0,0.00030728,2]
[391739020,1760764245719,-153.0,0.00030728,2]
[391739021,1760764245728,-153.0,0.00030728,2]
[391739022,1760764245738,-153.0,0.00030728,2]
[391739023,1760764245747,-153.0,0.00030728,2]
[391739024,1760764245756,-153.0,0.00030728,2]
[391739025,1760764245765,-153.0,0.00030728,2]
[391739026,1760764245774,-153.0,0.00030728,2]
[391739027,1760764245782,-153.0,0.00030728,2]
[391739028,1760764245791,-153.0,0.00030728,2]
[391739029,1760764245800,-153.0,0.00030728,2]
[391739030,1760764245809,-153.0,0.00030728,2]
[391739031,1760764245818,-153.0,0.00030728,2]
[391739032,1760764245828,-153.0,0.00030728,2]
[391739034,1760764245837,-153.0,0.00030728,2]
[391739035,1760764245846,-153.0,0.00030728,2]
[391739036,1760764245855,-153.0,0.00030728,2]
[391739037,1760764245865,-153.0,0.00030728,2]
[391739039,1760764245874,-153.0,0.00030728,2]
[391739040,1760764245883,-153.0,0.00030728,2]
[391739041,1760764245893,-153.0,0.00030728,2]
[391739042,1760764245902,-153.0,0.00030728,2]
[391739044,1760764245911,-153.0,0.00030728,2]
[391739045,1760764245921,-153.0,0.00030728,2]
[391739046,1760764245930,-153.0,0.00030728,2]
[391739048,1760764245939,-153.0,0.00030728,2]
[391739049,1760764245949,-151.0,0.00031,120]
[391739050,1760764245958,-156.0,0.00031,120]
[391739051,1760764245968,-427.8,0.0003137,2]
[391739053,1760764245977,-151.0,0.000324,120]
[391739054,1760764245987,-295.99665503,0.00032877,2]
[391739055,1760764245995,-260.9,0.00033165,2]
[391739057,1760764246005,-156.0,0.000333,120]